bitfinex/quotes_ETHUSD_20250131
["timestamp","ask_amount","ask_price","bid_price","bid_amount"]
[1738365733312,3.02947,3300.9,3300.5,3.15817657]
[1738365733514,0.8329,3301.0,3300.5,0.75477522]
[1738365733714,0.8329,3300.7,3300.5,0.75477522]
[1738365733927,0.8329,3300.7,3300.1,6.0302]
[1738365734233,0.8329,3300.7,3300.3,3.03]
[1738365734620,0.8329,3300.7,3300.2,3.0]
[1738365734795,0.03787424,3300.6,3300.2,3.0]
[1738365734996,0.8329,3300.7,3300.1,0.906157]
[1738365735233,2.23360974,3300.5,3300.0,0.001]
[1738365735433,0.8329,3300.4,3300.0,0.001]
[1738365735842,0.8329,3300.4,3300.0,3.03128]
[1738365737248,5.26291974,3301.1,3300.0,0.66666616]
[1738365737542,0.8329,3301.0,3300.6,3.02974]
[1738365738302,0.8329,3301.0,3300.5,3.02977]
[1738365738845,3.86228,3301.0,3300.3,3.03002]
[1738365739005,3.90015326,3301.0,3300.3,3.03002]
[1738365739202,3.02947,3300.9,3300.3,3.03002]
[1738365739614,3.06650974,3300.8,3300.0,0.001]
[1738365739963,0.8329,3300.6,3300.0,3.03129]
[1738365740308,3.86266,3300.6,3300.0,3.03129]
[1738365741721,0.8329,3300.6,3300.1,3.0302]
[1738365743304,0.8329,3300.6,3300.3,3.03]
[1738365745804,0.8329,3300.6,3300.1,3.69585516]
[1738365746027,0.8329,3300.6,3300.1,3.0302]
[1738365746435,0.8329,3300.6,3300.2,3.03009]
[1738365753012,0.9167,3300.9,3300.5,3.02975]
[1738365754051,0.9167,3300.9,3300.6,3.02973]
[1738365754359,0.9167,3301.1,3300.6,3.02973]
[1738365757318,0.9167,3301.1,3300.6,3.64712291]
[1738365758162,0.9167,3301.1,3300.8,3.02951]
[1738365761931,0.9167,3301.4,3301.0,3.02938]
[1738365762360,0.9167,3301.4,3301.1,3.02929]
[1738365762763,3.02873,3301.8,3301.4,3.02893]
[1738365762764,0.9167,3301.8,3301.4,3.02893]
[1738365762971,0.9167,3301.8,3301.6,3.0288]
[1738365763231,3.0283,3302.2,3301.4,2.726037]
[1738365763426,0.9167,3302.1,3301.4,2.726037]
[1738365763736,0.9167,3302.1,3301.6,3.0288]
[1738365763937,0.9167,3302.1,3301.6,2.44384988]
[1738365767047,3.94507,3302.1,3301.4,3.34637679]
[1738365767231,3.94507,3302.1,3301.5,3.02891]
[1738365767431,0.9167,3302.1,3301.6,3.02881]
[1738365769281,0.889,3302.5,3301.8,0.8954]
[1738365769483,0.889,3302.5,3302.2,3.02824]
[1738365769979,0.889,3302.5,3302.0,3.02846]
[1738365771561,0.889,3302.5,3302.0,3.723709]
[1738365771762,0.8515,3302.8,3302.2,3.02824]
[1738365771965,0.8515,3302.8,3302.3,3.02811]
[1738365779224,3.87925,3302.8,3302.1,3.02835]
[1738365779982,3.87925,3302.8,3302.2,3.02828]
[1738365781422,3.02715,3303.5,3302.0,0.60673496]
[1738365781423,0.8547,3302.6,3302.0,0.60673496]
[1738365782291,3.02807,3302.5,3301.8,3.0]
[1738365782498,0.8547,3302.2,3301.8,3.0]
[1738365782823,0.8547,3302.2,3301.9,3.631412]
[1738365784227,0.8547,3302.2,3301.9,0.602872]
[1738365784422,0.8547,3302.2,3301.8,3.61816671]
[1738365784624,0.8547,3302.2,3301.8,6.64679671]
[1738365785531,0.8547,3302.2,3301.9,3.02855]
[1738365788490,0.8547,3302.2,3302.1,3.02837]
[1738365789601,0.8547,3302.2,3301.9,6.05703]
[1738365789798,0.8547,3302.2,3301.9,7.02454967]
[1738365790045,0.8547,3302.2,3301.9,3.99599967]
[1738365790208,0.8547,3302.2,3302.0,3.02846]
[1738365791611,0.8547,3302.2,3301.9,3.99599967]
[1738365791809,0.8547,3302.2,3302.0,3.02846]
[1738365792948,0.8547,3302.2,3302.1,3.02837]
[1738365797357,3.02786,3302.7,3302.1,3.02837]
[1738365797654,0.8479,3303.2,3302.6,3.02787]
[1738365797835,3.87527,3303.2,3302.6,3.02787]
[1738365798410,3.87549,3303.0,3302.3,3.02818]
[1738365798611,3.87561,3302.9,3302.2,3.02825]
[1738365798854,3.87566,3302.8,3302.2,3.02825]
[1738365799229,0.8479,3302.8,3302.2,3.02825]
[1738365801184,0.8479,3302.8,3301.9,0.8812]
[1738365801374,0.8479,3302.8,3302.4,3.02809]
[1738365801681,0.8479,3302.8,3302.3,3.0281]
[1738365801910,0.8479,3302.8,3302.4,3.02808]
[1738365804463,0.8479,3302.8,3302.5,3.028]
[1738365805885,0.8479,3302.8,3302.3,3.64437994]
[1738365806191,0.8479,3302.8,3301.9,0.8812]
[1738365806192,0.8919,3302.5,3302.0,3.02839]
[1738365806351,0.8919,3302.5,3302.0,0.6016095]
[1738365806546,0.8919,3302.5,3302.1,3.02835]
[1738365810524,0.8919,3302.5,3301.6,0.9193]
[1738365810525,3.02836,3302.2,3301.6,0.9193]
[1738365810669,0.8605,3302.1,3301.6,3.6443998]
[1738365811019,0.8605,3302.1,3301.8,3.02857]
[1738365811314,0.8605,3302.1,3301.8,3.69586698]
[1738365811929,0.8605,3302.5,3302.0,3.02846]
[1738365812229,3.88851,3302.5,3301.8,3.02857]
[1738365812385,3.88851,3302.5,3301.9,3.02854]
[1738365813609,3.88851,3302.5,3301.8,3.02857]
[1738365813778,0.8605,3302.3,3301.8,3.02857]
[1738365813984,3.88871,3302.3,3301.6,6.6731698]
[1738365814191,3.88871,3302.3,3301.7,3.02873]
[1738365814702,0.8605,3302.3,3301.6,3.6443498]
[1738365814902,0.8605,3302.3,3301.8,3.02865]
[1738365816819,3.02833,3302.2,3301.6,3.02876]
[1738365817027,0.8605,3302.1,3301.6,3.02876]
[1738365818753,3.02847,3302.0,3301.3,3.02906]
[1738365818903,0.89835994,3301.9,3301.3,3.02906]
[1738365819247,0.8605,3301.9,3301.3,3.02906]
[1738365819727,0.8605,3301.9,3301.3,3.62187131]
[1738365822630,0.8605,3301.9,3301.4,3.02896]
[1738365827183,0.8605,3301.9,3301.5,3.02891]
[1738365829281,0.8605,3301.9,3301.4,3.02896]
[1738365829282,0.8605,3301.9,3301.6,3.02883]
[1738365830466,0.8514,3302.4,3301.8,3.02865]
[1738365830784,0.8514,3302.4,3301.8,3.02858]
[1738365831640,0.8514,3302.4,3301.7,3.02873]
[1738365831940,3.87952,3302.4,3301.8,3.02863]
[1738365833176,0.8514,3302.4,3301.9,3.02847]
[1738365835281,0.8514,3302.4,3301.6,3.33428835]
[1738365835455,0.8514,3302.2,3301.6,3.0288]
[1738365835988,0.8514,3302.2,3301.7,3.02873]
[1738365836137,0.8514,3302.2,3301.5,3.02886]
[1738365836465,0.8514,3302.2,3301.7,3.02872]
[1738365838466,0.8514,3302.2,3301.6,3.02881]
[1738365838669,3.87976,3302.2,3301.7,0.61737526]
[1738365838875,3.02837,3302.1,3301.7,0.61737526]
[1738365839689,0.8514,3302.2,3301.7,0.61737526]
[1738365839996,0.8514,3302.2,3301.8,3.02864]
[1738365840498,0.8514,3302.5,3302.1,6.02829]
[1738365840794,0.8514,3302.7,3302.2,3.02826]
[1738365842958,0.8514,3302.7,3302.1,3.0]
[1738365842959,3.87923,3302.7,3302.1,3.0]
[1738365843399,3.02793,3302.6,3302.1,3.0]
[1738365843906,0.8514,3302.7,3302.1,6.02835]
[1738365844069,3.87924,3302.7,3302.1,6.02835]
[1738365845685,0.8514,3302.7,3302.2,3.02822]
[1738365845886,0.8514,3302.7,3302.3,3.02818]
[1738365846900,0.8619,3303.0,3302.5,3.028]
[1738365847197,0.8619,3303.0,3302.4,3.02801]
[1738365847359,3.88948,3303.0,3302.4,3.02801]
[1738365848871,0.8619,3303.0,3302.4,3.02801]
[1738365849293,0.8619,3303.0,3302.6,3.02784]
[1738365849499,0.8619,3303.0,3302.7,3.02781]
[1738365849816,0.8619,3303.0,3302.6,3.02784]
[1738365851514,0.902,3303.3,3302.7,0.8317]
[1738365851822,0.902,3303.3,3302.8,3.02764]
[1738365853823,0.902,3303.3,3302.9,3.02763]
[1738365854003,0.902,3303.5,3302.8,3.02755]
[1738365854317,0.902,3303.5,3303.0,3.02754]
[1738365854523,0.902,3303.5,3302.8,3.02755]
[1738365854873,0.902,3303.5,3303.0,3.02754]
[1738365857340,3.92911,3303.5,3302.8,3.02755]
[1738365857508,3.92911,3303.5,3302.9,3.02762]
[1738365858739,0.902,3303.5,3303.0,3.02753]
[1738365862137,0.902,3303.5,3303.1,3.02745]
[1738365863530,0.902,3303.5,3303.0,3.02753]
[1738365864089,5.03112297,3303.7,3303.1,3.02744]
[1738365865305,3.88627,3303.7,3303.1,3.02744]
[1738365866607,0.8593,3303.7,3303.2,3.02734]
[1738365866817,0.8593,3303.7,3303.2,3.632827]
[1738365867111,0.8593,3303.7,3303.3,3.02726]
[1738365869851,0.8593,3303.7,3303.3,3.64649463]
[1738365870945,0.8593,3303.7,3303.3,0.61923463]
[1738365875237,0.8593,3303.7,3303.3,3.64649463]
[1738365875442,0.8593,3303.7,3303.3,4.37442679]
[1738365875845,0.8593,3303.7,3303.3,1.34716679]
[1738365876024,0.8997,3304.1,3303.4,0.03026809]
[1738365876214,0.8997,3304.1,3303.6,3.027]
[1738365878175,3.92626,3304.1,3303.4,3.02712]
[1738365879336,3.92626,3304.1,3303.5,3.02707]
[1738365881641,3.92626,3304.1,3303.4,3.02712]
[1738365881939,3.92626,3304.1,3303.5,0.36463546]
[1738365882140,3.92626,3304.1,3303.5,3.39168546]
[1738365882748,3.02663,3304.0,3303.5,3.39168546]
[1738365883238,3.92626,3304.1,3303.5,3.39168546]
[1738365883394,3.02663,3304.0,3303.5,3.39168546]
[1738365884490,0.8495,3303.6,3303.3,0.61923463]
[1738365884650,0.8495,3303.6,3303.0,3.02749]
[1738365885692,0.8495,3303.6,3303.2,0.59283542]
[1738365887369,3.87652,3303.6,3303.1,3.0]
[1738365887566,0.8495,3303.6,3303.1,7.23670969]
[1738365888511,0.8495,3303.6,3303.3,3.0]
[1738365889412,0.8495,3303.6,3303.2,3.0]
[1738365889713,0.8495,3303.6,3303.1,1.20927969]
[1738365890204,0.8495,3303.6,3303.1,7.23670969]
[1738365890762,0.8495,3303.6,3303.1,4.20927969]
[1738365891999,0.8495,3303.6,3303.1,7.23670969]
[1738365894277,0.8495,3303.6,3303.1,4.20927969]
[1738365894477,0.8495,3303.6,3303.1,3.60653069]
[1738365895788,0.8495,3303.6,3303.1,6.63396069]
[1738365897424,0.8615,3303.5,3303.1,3.60653069]
[1738365898824,3.88859,3303.5,3303.1,3.60653069]
[1738365899120,3.88859,3303.5,3303.1,3.0]
[1738365900717,0.8615,3303.5,3303.1,3.0]
[1738365901391,0.8615,3303.4,3303.1,3.0]
[1738365905665,0.8615,3303.4,3303.1,6.02744]
[1738365910079,0.8615,3303.4,3303.1,3.0]
[1738365910587,0.8615,3303.4,3303.1,6.02745]
[1738365911482,0.8448,3303.7,3303.1,7.81683734]
[1738365911854,0.8448,3303.7,3303.3,3.02727]
[1738365916836,0.8448,3303.7,3303.3,3.0272]
[1738365924383,0.8448,3303.7,3303.1,9.05482]
[1738365924610,3.02685,3303.8,3303.0,0.61486338]
[1738365924611,3.88205,3303.1,3303.0,0.61486338]
[1738365924783,0.8546,3302.3,3301.6,3.80785]
[1738365925099,1.14485297,3302.1,3301.3,3.02909]
[1738365925257,3.02862,3301.9,3301.3,3.409909]
[1738365925444,3.02867,3301.8,3301.3,0.380819]
[1738365926173,3.02867,3301.8,3301.3,0.99790055]
[1738365929181,3.02867,3301.8,3301.3,0.61708155]
[1738365929386,3.02901,3301.4,3300.7,3.02964]
[1738365929883,3.02901,3301.4,3301.1,0.60241511]
[1738365932224,0.851,3301.3,3301.1,0.60241511]
[1738365934739,0.88886517,3301.3,3300.3,3.02998]
[1738365935037,3.02936,3301.1,3300.8,0.60168156]
[1738365935560,0.851,3301.3,3300.8,0.60168156]
[1738365935713,3.02921,3301.2,3300.8,0.60168156]
[1738365935936,0.851,3301.3,3300.8,0.60168156]
[1738365935937,0.851,3301.3,3300.8,3.63123156]
[1738365937681,0.851,3301.3,3300.6,6.02972]
[1738365937887,0.851,3301.3,3300.7,3.02965]
[1738365938982,0.851,3301.3,3300.7,3.62842079]
[1738365941096,3.88013,3301.3,3300.7,3.62842079]
[1738365941457,0.851,3301.3,3300.7,3.62842079]
[1738365941794,0.851,3301.3,3300.8,3.02955]
[1738365942088,3.02902,3301.4,3300.8,3.02955]
[1738365944035,3.02854,3302.0,3300.7,1.56459487]
[1738365944036,0.7848,3301.8,3301.0,3.02938]
[1738365944211,0.7848,3302.1,3301.5,3.0289]
[1738365944415,3.81299,3302.3,3301.7,3.02866]
[1738365944730,0.7848,3302.3,3301.7,3.02866]
[1738365944901,0.7848,3302.3,3301.8,3.02859]
[1738365945934,3.81274,3302.6,3301.9,6.02849]
[1738365946156,3.02774,3302.8,3302.2,3.02827]
[1738365946794,3.02774,3302.8,3302.0,3.87706]
[1738365946795,3.02779,3302.8,3302.1,3.0]
[1738365947102,3.02779,3302.8,3302.1,3.02837]
[1738365947413,3.02779,3302.8,3302.1,3.77845205]
[1738365950704,3.02779,3302.8,3302.2,3.02825]
[1738365954563,3.02779,3302.8,3302.1,0.75008205]
[1738365954793,0.8416,3302.5,3302.0,3.0]
[1738365954965,3.02742,3303.2,3301.9,0.59530053]
[1738365954966,3.02754,3303.1,3301.9,0.59530053]
[1738365955137,3.02764,3302.9,3302.2,3.0282]
[1738365955470,3.02793,3302.6,3302.1,3.0]
[1738365955756,0.8416,3302.5,3301.9,0.59530053]
[1738365956320,3.86961,3302.5,3301.9,0.59530053]
[1738365956968,3.86961,3302.5,3302.0,3.0]
[1738365957262,0.8416,3302.5,3302.0,6.69083305]
[1738365958642,0.8416,3302.5,3302.0,3.0]
[1738365960243,0.8416,3302.5,3302.0,6.02846]
[1738365961224,3.86961,3302.5,3301.7,3.02873]
[1738365961428,0.8416,3301.9,3301.4,0.60884562]
[1738365961636,3.87035,3301.7,3301.1,3.02921]
[1738365962240,3.87035,3301.7,3301.0,3.0]
[1738365962424,3.02902,3301.4,3300.8,3.02955]
[1738365962747,3.02902,3301.4,3301.2,0.61733297]
[1738365963403,0.8416,3301.6,3301.2,0.61733297]
[1738365963600,3.87078,3301.3,3300.8,3.0]
[1738365965544,3.87078,3301.3,3300.9,0.60126764]
[1738365965845,0.8416,3301.3,3300.9,0.60126764]
[1738365969585,0.8416,3301.3,3300.4,0.8273]
[1738365969796,3.02936,3301.1,3300.4,3.85718]
[1738365970082,3.02936,3301.1,3300.5,6.02982]
[1738365970451,0.7769,3301.0,3300.5,6.02982]
[1738365970884,0.7769,3301.0,3300.6,0.61674409]
[1738365972332,0.7769,3301.0,3300.6,3.64648409]
[1738365972553,0.8438,3301.4,3300.8,3.0295]
[1738365972834,0.8438,3301.4,3301.0,3.0]
[1738365973034,0.8438,3301.9,3301.3,3.02904]
[1738365973269,0.8438,3301.9,3301.5,3.02891]
[1738365973471,0.8438,3302.2,3301.6,3.02875]
[1738365973690,0.8438,3302.6,3302.1,3.02837]
[1738365973896,0.8438,3302.6,3302.2,3.02825]
[1738365974187,0.8438,3302.6,3302.1,3.02837]
[1738365975298,0.8438,3302.6,3301.9,3.02855]
[1738365975590,3.87172,3302.6,3301.9,3.02855]
[1738365976192,0.8438,3302.3,3301.7,0.61741872]
[1738365976392,3.02835,3302.2,3301.7,0.61741872]
[1738365976751,3.02841,3302.1,3301.7,0.61741872]
[1738365978694,0.8438,3302.3,3301.7,3.64607872]
[1738365979096,0.8438,3302.3,3301.8,3.02864]
[1738365981287,0.8438,3302.3,3301.9,3.02855]
[1738365982251,0.8438,3302.3,3301.7,3.64611872]
[1738365984667,0.8438,3302.3,3301.8,3.02858]
[1738365986792,3.87199,3302.3,3301.7,0.61741872]
[1738365987315,0.8438,3302.3,3301.7,0.61741872]
[1738365987502,0.8438,3302.3,3301.8,3.02864]
[1738365990033,0.8436,3302.7,3302.2,3.02828]
[1738365994431,0.8436,3302.7,3302.3,3.02819]
[1738365995087,0.8436,3302.7,3302.1,6.02831]
[1738365995515,0.8436,3302.7,3302.2,3.02826]
[1738365996098,3.87143,3302.7,3302.2,3.02826]
[1738365996292,0.8436,3302.7,3302.2,3.99542749]
[1738365999542,0.8436,3302.7,3302.3,3.02814]
[1738366003769,0.8436,3302.7,3302.4,3.02805]
[1738366003971,3.80545,3303.3,3302.6,3.02791]
[1738366004177,3.80545,3303.3,3302.7,3.02781]
[1738366004178,0.7781,3303.3,3302.7,3.02781]
[1738366005581,0.7781,3303.3,3302.6,0.33306708]
[1738366005785,0.7781,3303.5,3303.1,3.0274]
[1738366005934,3.01296854,3303.7,3303.1,3.8386]
[1738366006450,3.02702,3303.6,3302.9,3.02762]
[1738366007967,0.7781,3303.7,3303.1,3.02745]
[1738366008780,0.7781,3303.7,3303.2,3.02735]
[1738366008957,0.7781,3303.7,3302.9,3.61931369]
[1738366009158,0.7781,3303.7,3302.9,4.06236506]
[1738366009886,0.7781,3303.7,3303.1,3.02738]
[1738366010582,3.027,3303.6,3303.0,3.02753]
[1738366010781,0.8328,3303.3,3302.7,3.02779]
[1738366010985,0.8328,3303.3,3302.8,3.02773]
[1738366011885,0.8328,3303.3,3303.0,3.02754]
[1738366012069,3.02702,3303.6,3303.0,3.02754]
[1738366012279,3.85982,3303.6,3303.0,3.02754]
[1738366015969,0.8328,3303.6,3302.9,3.0]
[1738366016170,0.8328,3303.6,3303.1,3.02738]
[1738366018199,5.26150854,3304.0,3303.2,3.02728]
[1738366018411,3.02644,3304.3,3303.3,0.0075]
[1738366018559,0.859,3304.2,3303.7,3.0269]
[1738366019396,3.88545,3304.2,3303.4,3.02718]
[1738366019599,3.02657,3304.1,3303.5,3.0]
[1738366020017,3.02657,3304.1,3303.5,6.02706]
[1738366023239,3.02682,3303.8,3303.2,3.02731]
[1738366023543,0.859,3303.9,3303.4,0.59558942]
[1738366023709,0.859,3303.9,3303.5,3.0]
[1738366023916,0.859,3303.9,3303.5,6.02706]
[1738366024127,2.23486854,3304.3,3303.7,3.02683]
[1738366024128,0.818,3304.3,3303.7,3.02683]
[1738366024849,0.818,3304.3,3303.8,3.02679]
[1738366025942,0.818,3304.3,3303.9,3.0267]
[1738366026148,0.818,3304.3,3304.0,3.02656]
[1738366026452,0.818,3304.6,3304.1,3.02654]
[1738366031548,0.818,3304.6,3304.3,3.02628]
[1738366032157,0.8452,3304.8,3304.3,3.02628]
[1738366033448,5.26067854,3304.9,3304.3,3.02628]
[1738366033633,5.26067854,3304.9,3304.4,0.602628]
[1738366034250,0.8332,3304.8,3304.4,0.602628]
[1738366036725,3.02581,3304.9,3304.4,0.602628]
[1738366036939,3.85884,3305.1,3304.5,3.02611]
[1738366039171,3.02572,3305.0,3304.5,3.02611]
[1738366039525,3.02572,3305.0,3304.5,3.6916118]
[1738366039753,3.02572,3305.0,3304.5,0.6655018]
[1738366040176,3.02572,3305.0,3304.4,4.2449074]
[1738366040857,3.85884,3305.1,3304.4,4.2449074]
[1738366041058,3.85884,3305.1,3304.5,3.02616]
[1738366041255,3.85884,3305.1,3304.6,0.7859]
[1738366042126,3.85884,3305.1,3304.6,3.81191]
[1738366042127,0.8332,3305.1,3304.6,3.81191]
[1738366042443,2.23486854,3305.2,3304.6,3.81191]
[1738366042444,2.23486854,3305.2,3304.7,3.407171]
[1738366043475,5.26040854,3305.2,3304.7,0.381191]
[1738366043642,3.02569,3305.1,3304.4,3.6422594]
[1738366043846,3.02579,3305.0,3304.4,3.6422594]
[1738366044257,0.8419,3304.9,3304.4,3.6422594]
[1738366044643,6.14042186,3304.9,3304.1,3.0]
[1738366044849,3.02606,3304.7,3304.1,3.0]
[1738366045055,3.02606,3304.7,3304.1,3.715063]
[1738366045670,3.0261,3304.6,3304.1,3.715063]
[1738366045877,3.0261,3304.6,3304.1,4.33458402]
[1738366048131,3.0261,3304.6,3303.7,3.8483]
[1738366048132,0.8419,3304.3,3303.7,3.8483]
[1738366048331,3.86827,3304.3,3303.7,3.8483]
[1738366048552,6.10313854,3304.3,3303.8,3.0]
[1738366048760,3.02661,3304.1,3303.8,3.0]
[1738366049463,3.02661,3304.1,3303.7,0.61007932]
[1738366050880,0.8276,3304.0,3303.7,0.61007932]
[1738366051080,3.0268,3303.9,3303.3,3.0]
[1738366051376,3.0268,3303.9,3303.2,3.89043]
[1738366051576,3.02701,3303.6,3303.2,0.8631]
[1738366051733,3.02701,3303.6,3303.1,3.0]
[1738366051940,0.8276,3303.5,3303.1,3.0]
[1738366053101,0.8276,3303.5,3303.1,6.02745]
[1738366055501,0.8276,3303.5,3303.1,3.0]
[1738366055701,3.85469,3303.5,3303.0,0.59566037]
[1738366055904,3.02722,3303.4,3303.0,0.59566037]
[1738366056201,3.02731,3303.3,3303.0,0.59566037]
[1738366057008,3.02742,3303.2,3302.5,3.89109]
[1738366057207,3.02731,3303.3,3302.6,3.0]
[1738366057507,3.02731,3303.3,3302.6,6.02788]
[1738366057811,3.02731,3303.3,3302.8,0.6032654]
[1738366059203,3.85502,3303.2,3302.6,3.0]
[1738366059405,3.02749,3303.1,3302.6,3.0]
[1738366059713,3.02749,3303.1,3302.3,3.02818]
[1738366059714,3.02767,3302.9,3302.3,3.02818]
[1738366060686,3.02749,3303.1,3302.2,3.8631]
[1738366060904,3.02749,3303.1,3302.4,3.02809]
[1738366061214,3.02756,3303.0,3302.5,0.61090167]
[1738366061704,3.02764,3302.9,3302.5,0.61090167]
[1738366064103,0.7845,3302.7,3302.5,0.61090167]
[1738366064301,3.81233,3302.7,3302.5,0.61090167]
[1738366065328,0.7845,3302.7,3302.5,0.61090167]
[1738366068112,3.81232,3302.7,3302.5,0.61090167]
[1738366068633,0.7845,3302.7,3302.5,0.61090167]
[1738366072098,3.0277,3302.9,3302.5,0.61090167]
[1738366074742,3.0277,3302.9,3302.3,3.02818]
[1738366075411,3.0277,3302.9,3302.4,0.59412422]
[1738366076849,0.8312,3303.0,3302.4,0.59412422]
[1738366077007,3.85878,3303.0,3302.4,3.62220422]
[1738366079656,3.02738,3303.2,3302.4,3.62220422]
[1738366079657,3.02738,3303.2,3302.6,3.02789]
[1738366079943,0.8312,3303.6,3302.9,3.02762]
[1738366080101,3.02709,3303.5,3302.9,3.02762]
[1738366080908,2.23486854,3303.4,3302.7,3.02782]
[1738366081241,3.02751,3303.1,3302.6,3.0]
[1738366082342,5.26237854,3303.1,3301.8,3.02864]
[1738366082546,5.26237854,3303.1,3302.2,3.64704604]
[1738366082547,0.8312,3302.8,3302.2,3.64704604]
[1738366083105,3.89677973,3302.8,3302.3,3.0]
[1738366083309,3.89677973,3302.8,3302.2,3.61879604]
[1738366083310,3.02783,3302.7,3302.2,3.61879604]
[1738366083952,0.03785099,3302.6,3301.9,3.87623]
[1738366084123,3.02837,3302.1,3301.6,0.7992]
[1738366084326,0.8218,3302.2,3301.6,3.82801]
[1738366084539,0.8218,3302.2,3301.7,3.0]
[1738366085106,0.8218,3302.2,3301.8,0.59194194]
[1738366085312,3.85009,3302.2,3301.8,0.59194194]
[1738366086997,0.8218,3302.2,3301.8,0.59194194]
[1738366088974,3.02837,3302.1,3301.8,0.59194194]
[1738366089178,3.85008,3302.2,3301.8,0.59194194]
[1738366092892,0.8218,3302.2,3301.8,0.59194194]
[1738366093588,3.02759,3303.0,3301.9,0.8049]
[1738366093589,0.8451,3302.7,3301.9,0.8049]
[1738366093764,0.8451,3302.7,3302.1,3.02835]
[1738366094481,0.8451,3302.7,3302.2,3.02826]
[1738366095119,0.8451,3302.7,3302.1,3.02835]
[1738366095529,0.8451,3302.7,3302.0,3.0]
[1738366095710,5.26293854,3302.5,3302.0,3.0]
[1738366095915,0.8451,3302.4,3301.8,0.59194194]
[1738366096082,3.02822,3302.3,3301.8,0.59194194]
[1738366098340,0.8451,3302.4,3301.8,0.59194194]
[1738366098510,3.02828,3302.2,3301.8,0.59194194]
[1738366101543,3.02855,3301.9,3301.3,3.0]
[1738366101774,3.06641144,3301.9,3301.3,3.0]
[1738366102123,3.02855,3301.9,3301.3,3.0]
[1738366102324,0.8451,3302.0,3301.5,3.0]
[1738366102752,0.8451,3302.0,3301.5,3.6152848]
[1738366103861,0.8451,3302.0,3301.6,0.8049]
[1738366104564,5.26289854,3302.5,3301.6,4.57864348]
[1738366104767,0.835,3302.4,3301.8,3.02857]
[1738366104923,0.835,3302.4,3302.0,3.02845]
[1738366105772,3.02793,3302.6,3302.0,3.02845]
[1738366106631,3.86285,3302.7,3301.8,3.02857]
[1738366106862,3.02802,3302.5,3301.8,3.02857]
[1738366107373,3.02802,3302.5,3301.9,3.02851]
[1738366108380,0.835,3302.9,3302.3,0.8642]
[1738366108543,3.86264,3302.9,3302.3,3.89237]
[1738366109218,3.02774,3302.8,3302.3,0.8642]
[1738366109733,3.86264,3302.9,3302.3,0.8642]
[1738366110229,3.86264,3302.9,3302.3,3.89236]
[1738366110588,3.86264,3302.9,3302.3,4.30544039]
[1738366111531,3.86264,3302.9,3302.3,1.27728039]
[1738366111715,3.86264,3302.9,3302.2,0.62135863]
[1738366111919,3.86264,3302.9,3302.3,3.02819]
[1738366115338,3.02783,3302.7,3302.2,0.62135863]
[1738366115546,3.02798,3302.6,3302.0,3.8089]
[1738366115696,3.02783,3302.7,3302.0,6.83736]
[1738366116001,3.02792,3302.6,3302.0,7.44847228]
[1738366116195,3.02792,3302.6,3302.0,4.42001228]
[1738366116442,0.797,3302.5,3302.0,0.8089]
[1738366116661,3.02839,3302.1,3301.7,0.8089]
[1738366116827,3.02839,3302.1,3301.5,3.63372778]
[1738366116828,3.82554,3302.0,3301.5,0.60480778]
[1738366118004,3.82495,3302.6,3301.9,3.02847]
[1738366118341,3.02782,3302.7,3301.7,0.8089]
[1738366118727,3.02782,3302.7,3302.0,3.02837]
[1738366119141,3.02792,3302.6,3302.0,3.02837]
[1738366119649,3.02782,3302.7,3301.8,3.83754]
[1738366119851,3.02801,3302.5,3301.8,3.83754]
[1738366120145,3.02782,3302.7,3301.8,4.524176]
[1738366120306,3.02782,3302.7,3302.0,3.0284]
[1738366120853,3.02797,3302.6,3302.0,3.0284]
[1738366122247,3.82525,3302.3,3301.8,3.8089]
[1738366122551,3.02802,3302.5,3301.9,3.02851]
[1738366123734,3.028,3302.6,3302.0,3.0284]
[1738366123936,3.028,3302.6,3302.1,0.8231]
[1738366124546,3.0658727,3302.5,3301.9,3.02851]
[1738366124705,3.02802,3302.5,3301.9,3.85161]
[1738366127003,3.81825,3302.3,3301.8,3.0]
[1738366130463,3.0281,3302.4,3301.8,6.02863]
[1738366132259,3.0282,3302.3,3301.8,3.0]
[1738366134540,3.02829,3302.2,3301.8,3.0]
[1738366134953,3.02829,3302.2,3301.7,0.8231]
[1738366135155,3.0282,3302.3,3301.8,3.0]
[1738366136331,3.02807,3302.5,3301.8,6.02862]
[1738366137735,3.848,3302.6,3301.8,6.02862]
[1738366137936,3.848,3302.6,3301.9,3.02853]
[1738366138158,3.848,3302.6,3302.0,0.8357]
[1738366138357,3.848,3302.6,3302.0,3.86415]
[1738366138565,3.028,3302.6,3302.0,3.86415]
[1738366139161,3.028,3302.6,3302.0,0.8357]
[1738366139478,3.028,3302.6,3302.0,3.86415]
[1738366140462,3.02776,3302.8,3302.2,3.02826]
[1738366140660,3.02776,3302.8,3302.3,0.8357]
[1738366141392,3.02783,3302.7,3302.3,0.8357]
[1738366141691,3.02798,3302.6,3302.0,0.8357]
[1738366142595,3.02802,3302.5,3302.0,0.8357]
[1738366147598,3.84062,3302.5,3302.0,0.8357]
[1738366150770,3.02802,3302.5,3302.0,0.8357]
[1738366150976,1.14571721,3302.6,3302.1,3.02835]
[1738366151511,3.02783,3302.7,3302.1,3.02835]
[1738366154271,3.02783,3302.7,3302.2,0.8396]
[1738366155116,3.02767,3302.9,3302.2,3.86781]
[1738366155275,3.02775,3302.8,3302.2,3.86781]
[1738366155475,3.02775,3302.8,3302.3,0.75070761]
[1738366156793,3.02767,3302.9,3302.3,0.75070761]